{"text_format":"1","workbook":"xlsx","n_sheets":6,"sheets":["General Information","Instructions","Schedule","Cover","Diesel - Tax Computation","Tables (CDTFA Staff Only)"],"not_rendered":{"charts":0,"images":0,"macros":1,"external_links":0,"defined_names":20,"comments":0,"pivot_tables":0},"unopened":[],"bounds":{"document_bytes":16777216,"sheet_cells":100000,"rows_first":2000,"rows_last":500,"rows_between":2000,"halvings":0,"cell_chars":16384,"cell_head_chars":4096},"cells_cut":0,"cells_raw":0,"read":"whole","date_system":"1900"}

{"sheet":"General Information","index":0,"n_rows":104,"n_cols":1,"rows_kept":104,"cut":false,"hidden":false,"merged":[]}
["This workbook has 5 active worksheets - General Information, Instructions, Schedule, Cover, and Diesel - Tax Refund Computation.  There is a hidden worksheet labeled Tables which you will not have access to.  Press the down arrow to read through the worksheet. If you receive a Security Warning, select Enable Content to allow the macros to run."]
["GENERAL INFORMATION"]
["General Data Entry"]
["1.  All gallon and dollar amounts must be entered as whole numbers.  Do not use decimals.  Round to\n     the nearest gallon or dollar amount."]
["2.  Dates must be entered using a proper date format.  Proper date formats are MMMM DD, YYYY\n     (i.e., August 13, 2019) or MM/DD/YY (i.e. 08/13/19 or 8/13/19)."]
["3.  Enter the CDTFA nine-digit account number excluding letters or dashes (e.g. 123456789).  Eight-\n     digit account numbers require a leading zero (e.g. 012345678)."]
["4.  Federal Employer Identification Numbers (FEINs) and Social Security Numbers (SSNs) are to be\n     entered using nine digits without dashes and letters."]
["5.  Two-digit identification (ID) type codes are required to identify ID numbers: Use 24 for FEIN, 34\n     for SSN, or 49 for account number."]
["6.  The Tax Rate is reported with a decimal point and three digits.  No leading zero should be entered.\n     Proper rate format is .nnn (e.g., .360 or .357)."]
["7.  No Activity Reports.  When submitting a \"No Activity Report,\" be sure to do the following: 1)\n     Identify the file as a \"No Activity Report\" file on the Cover worksheet; 2) Make sure no\n     transactions are reported on the Schedule worksheet; and 3) Click the \"Create FLT File\" button on\n     the Instructions worksheet."]
["Click here to return to Cover worksheet"]
["Cover Worksheet - General"]
["1.  Dates must be entered using a proper date format.  Proper date formats are MMMM DD, YYYY\n     (i.e., August 13, 2019) or MM/DD/YY (i.e. 08/13/19 or 8/13/19)."]
["2.  CDTFA account numbers must be entered using the nine-digit numeric portion, no dashes or\n     letters (e.g. 023456789). Eight-digit account numbers require a leading zero (e.g. 012345678)."]
["3.  Federal Employer Identification Numbers (FEINs) and Social Security Numbers (SSNs) are to be\n     entered using nine digits without dashes and letters."]
["4.  Two-digit identification (ID) qualifier codes are required to identify ID numbers: Use 24 for FEIN,\n     and 34 for SSN."]
["5.  All gallon and dollar amounts must be entered as whole numbers.  Do not use decimals.  Round to\n     the nearest gallon or dollar amount."]
["6.  No Activity Reports.  When submitting a \"No Activity Report,\" make sure that no transactions are\n     reported on the Schedule worksheet."]
["Cover Worksheet - Instructions"]
["1.  Enter the filing period dates in rows 4 and 5."]
["2.  Enter the account information requested in rows 7 through 18."]
["3.  If the return is a \"no activity\" return, enter \"1\" on row 21 and follow the \"no activity\" reporting\n     instructions on this worksheet.  No additional information is reported in the Return Information\n     section when reporting a \"no activity\" return."]
["4.  Enter the taxable gallons for Diesel Fuel in the appropriate columns on row 23 (line 1).  Diesel\n     gallons at the current rate are reported in column B and Diesel gallons at prior rates are reported in\n     columns C through F (One tax rate per column.  Do not repeat Diesel tax rates.).  See the \"Diesel-\n     Tax Computation\" worksheet for details."]
["5.  Enter the tax rate for each taxable gallon amount reported on row 23 (line 1) in the appropriate\n     columns on row 24 (line 2).  Proper rate format is .nnn (e.g. .360)."]
["6.  Enter the amount due or refund claimed at each tax rate in the appropriate columns on row 25 \n     (line 3).  (Multiply the amount reported on row 23 [line 1] by the rate reported on row 24 [line 2].)"]
["7.  The total gallons reported in all columns on row 23 (line 1) are reported on row 26 (line 4).  The\n      workbook will make this calculation for you."]
["8.  The total amount due or refund claimed as reported in all columns on row 25 (line 3) are reported\n     on row 28 (line 6.).  The workbook will make this calculation for you."]
["9.  Enter excess tax collected in row 27 (line 5). The amount is added to row 28 (line 6). Enter a\n     positive whole number."]
["10.  Enter any penalty or interest amounts due in rows 29 and 30 (lines 7 and 8)."]
["11. The total amount due or refund claimed is reported in row 31 (line 9).  (The sum of the amounts in\n       rows 28, 29, and 30 [lines 6, 7, and 8].)  The workbook will make this calculation for you."]
["12.  Enter data in rows 34 through 42 only if an electronic funds transfer (EFT) payment is included in\n        this electronic filing.  See \"ePay Instructions\" below for complete reporting instructions."]
["13. Enter the eFiling information requested in rows 44 through 47."]
["14. Enter the contact information requested in rows 49 through 64."]
["ePay Instructions"]
["If making an ePayment, all fields must be completed; otherwise, all fields must be left empty."]
["1.  Enter the payment warehouse date in row 34.  This is the date the payment is to be made to the\n     CDTFA.  For example, you can submit the return on the 15th and warehouse the payment until the\n     last day of the month.  The payment date can not be after the due date of the return.  For late \n     returns, the payment date must be the next banking day."]
["2.  Enter the dollar amount to be paid by EFT in row 35.  Payment amounts must be made in whole\n     dollars."]
["3.  Enter the bank routing number in row 36."]
["4.  Enter bank account number qualifier (“DBTCHK” – Business checking; “DBTSAV” – Business\n     savings; “DBTCCK” – Personal checking; “DBTCSV” – Personal savings) in row 37."]
["5.  Enter the bank account number in row 38."]
["6.  Enter the name of the person to contact if there are issues with the payment in row 39."]
["7.  Enter the area code for the contact person's phone number in row 40.  Use numbers only: \"222\"\n     not \"(222)\""]
["8.  Enter the contact person's phone number in row 41.  Use numbers only: \"2223333\" not \"222-3333\""]
["9.  Enter the contact person's phone number extension, if applicable, in row 42.  Use numbers only:\n     \"222\" not \"x222\""]
["Click here to return to Cover worksheet"]
["Schedule Worksheet"]
["1.  Transactions do not need to be grouped by schedule number or be in numeric order."]
["2.  Dates must be entered using a proper date format.  Proper date formats are MMMM DD, YYYY\n     (i.e., August 13, 2019) or MM/DD/YY (i.e. 08/13/19 or 8/13/19)."]
["3.  All gallon and dollar amounts must be entered as whole numbers.  Do not use decimals.  Round to\n     the nearest gallon or dollar amount."]
["4.  CDTFA account numbers must be entered using the nine-digit numeric portion, no dashes or\n     letters (e.g. 023456789). Eight-digit account numbers require a leading zero (e.g. 012345678)."]
["5.  Federal Employer Identification Numbers (FEINs) and Social Security Numbers (SSNs) are to be\n     entered using nine digits without dashes and letters."]
["6.  Two-digit identification (ID) type codes are required to identify ID numbers: Use 24 for FEIN, 34\n     for SSN, or 49 for account number."]
["7.  No Activity Reports.  When submitting a \"No Activity Report,\" make sure that no transactions are\n     reported on the Schedule worksheet."]
["Excel 2016 Security Settings"]
["If the \"Save As\" pop-up box does not appear when you click on the \"Create Flat File\" button, your security settings may be set too high to allow the associated program to function.  To change the security setting, follow these steps:"]
["1.  Save the Excel workbook containing your tax information."]
["2.  Close all open Excel workbooks."]
["3.  Click on the File tab."]
["4.  Click on the Excel Options button at the bottom of the pop-up window."]
["5.  Select Trust Center from the left column options of the Excel Options pop up window."]
["6.  Click on the Trust Center Settings button in the primary window."]
["7.  Select Macro Settings from the left column options of the Trust Center pop up window."]
["8.  Choose Enable All Macros from the Macro Settings option list."]
["9.  OK the change in the Trust Center pop up window."]
["10.  OK the change in the Excel Options pop up window."]
["11.  Open your Excel workbook and repeat Step 7 on the 'Instructions' worksheet."]
["12.  Once you have successfully created a Flat File, it is highly recommended that you change your\n        security settings back to a higher level."]
["Click here to return to Instructions worksheet"]
["Mode Codes"]
["B            Barge"]
["CE         Summary Information"]
["GS         Gas Station"]
["J             Truck"]
["PL          Pipeline"]
["R            Rail"]
["*RT        Removal from Terminal"]
["S            Ship (ocean marine vessel)"]
["*RT - Removal from Terminal (other than by truck or rail) for sale or consumption."]
["A supplier should use this mode code when: a sale or transfer is made within the bulk transfer/terminal system to an unlicensed customer; the sale is to a licensed industrial user and a removal is made from a vessel or pipeline; the removal is made from a vessel and the fuel will be consumed in the operation of the vessel; the disbursement is from a hydrant system at an airport; or when the disbursement is from qualifying truck removals at a secured airport."]
["Click here to return to Instructions worksheet"]
["Diesel - General Information"]
["Suppliers of diesel fuel will use this tax return to remit the Diesel Fuel Tax on (undyed) diesel fuel, which includes biodiesel.  The Diesel Fuel Tax is imposed on the following activities: removal of diesel fuel from a refinery or terminal rack; importation of diesel fuel outside the bulk transfer/terminal system; removal or sale of diesel fuel to an unlicensed person unless there was a prior taxable removal, entry, or sale; and removal or sale of blended diesel fuel outside the bulk transfer/terminal system.  All transactions involving these activities are subject to tax unless the transaction meets one of the exemptions provided in the Diesel Fuel Tax Law.  Dyed diesel fuel is not subject to tax unless it is used to operate a motor vehicle on a highway; however, it is subject to all of the reporting requirements applicable to undyed diesel fuel."]
["Diesel - Filing Requirements"]
["You must file a tax return with the CDTFA reporting such activities as importing and exporting above and below the terminal rack, blending, and refinery or terminal rack removals of diesel fuel in this state on a monthly basis.  You are also required to report aircraft jet fuel and kerosene imported, exported, and sold during the reporting period.  The return and the remittance payable to the CDTFA for the amount due must be filed on or before the last day of the calendar month following the reporting period to which it relates.  Paying your tax or filing your return after the due date may result in interest and penalty charges.  You must file a return even if no tax is due for the reporting period."]
["Accountability"]
["It is important that you report all transactions required by this return and supporting schedules.  The CDTFA will be comparing your total rack removals, as reported by you, against removals reported by terminals.  Your reports of products you import will be compared to exports reported to the CDTFA by other states.  Failure to report fully may result in the CDTFA contacting you to determine why your reports differ from reports submitted by third parties, such as the terminal operators."]
["Document Numbers"]
["The document number used on Receipt schedules must be the same document number provided on the bill of lading.  The document number used on Disbursement schedules must be the same document number shown on the bill of lading provided by the terminal from which the product is being removed."]
["Two-Party Exchange Transactions"]
["Suppliers may report two-party exchange transactions occurring on or after January 1, 2007.  Suppliers will use either Schedule 6X or Schedule 2X and the appropriate disbursement schedule to report their part in a two-party exchange.  Two-party exchange reporting must meet the following requirements:"]
["*  All parties must file electronically (including terminal operator)."]
["*  The two-party exchange is the subject of a written contract between the delivering supplier and the\n    receiving supplier."]
["*  The receiving supplier must report the two-party exchange and remit any tax due on a timely-filed\n    tax return."]
["*  Receiving supplier, delivering supplier, and terminal operator must all use the same bill of lading\n    number to report the transaction."]
["*  Receiving supplier, delivering supplier, and terminal operator must all use the same fuel type to\n    report the transaction."]
["*  Delivering supplier must report the two-party exchange to the terminal operator and identify the\n    receiving supplier."]
["*  Delivering supplier must report the tax-free delivery to the receiving supplier on Schedule 6X."]
["*  Receiving supplier must report the tax-free receipt of fuel from the delivering supplier on Schedule\n    2X."]
["*  Receiving supplier must report the rack removal of the fuel."]
["*  Two-party exchange transactions must be reported timely."]
["*  Receiving supplier and delivering supplier must be registered as suppliers."]
["CERTIFICATION"]
["Filers submitting their tax form electronically hereby consent to disclose and authorize the CDTFA to release, as necessary, certain otherwise confidential transaction information regarding volumes, invoice numbers, bills-of-lading, locations, dates, or method of delivery of reportable products to any person identified by you in this return as being involved in a reported transaction for the sole purpose of verifying the accuracy of the reportable product transaction information concerning your transactions with such person as reported in this return."]
["End of Worksheet"]

{"sheet":"Instructions","index":1,"n_rows":20,"n_cols":1,"rows_kept":20,"cut":false,"hidden":false,"merged":[]}
["Instructions For:"]
["SUPPLIER OF DIESEL FUEL TAX RETURN"]
["1.  Enter all transaction information for summary schedule codes and transaction schedule\n     codes on the Schedule worksheet.  Note: All summary schedule code transactions\n    must be entered before any other schedule code transactions are entered.  All \n     gallon amounts must be entered as whole gallons.  Do not use decimals.  Round to\n     the nearest whole gallon."]
["For schedule descriptions and instructions on completing schedules:"]
["Click here for schedule descriptions and instructions on completing schedules"]
["For product codes:"]
["Click here for Product Code List"]
["For mode codes:"]
["Click here for a list of valid transportation mode codes"]
["2.  Prepare the Tax Computation Worksheet.  The Tax Computation Worksheet will assist\n     you in calculating the tax due and completing your return."]
["Click here to go to Diesel-Tax Computation worksheet"]
["3.  Enter all information requested on the Cover worksheet.  Detailed instructions are\n     provided in the General Information worksheet.  Note: All gallon and dollar amounts\n     must be entered as whole numbers.  Do not use decimals.  Round to the nearest\n     whole number.  A tax computation worksheet is available to assist you."]
["Click here to go to Diesel-Tax Computation worksheet"]
["4.  Save the Excel workbook and the data input for this tax form for your records.  Do so by\n     selecting \"File, Save As\" from the menu and then identifying the file name and location."]
["5.  Create a FLT File by clicking on the button below.  You will be required to identify a file\n     name and location for your flat file.  Note: If the program does not execute and\n     display a \"Save As\" pop-up box or opens the \"Microsoft Visual Basic\" macro\n     editor, your security setting may be set too high."]
["Click here for instructions on changing the security setting"]
["Press Enter to create FLT file"]
["6.  Log-in to Online Services and upload the FLT File you created.  Note: The FLT File\n     has a \".txt\" extension, not \".xlsm.\""]
["Click here to go to the log-in webpage"]
["End of Worksheet"]

{"sheet":"Schedule","index":2,"n_rows":85,"n_cols":18,"rows_kept":85,"cut":false,"hidden":false,"merged":[]}
["Schedule Code","Product Code","Carrier Name","Carrier ID","Carrier ID Type (24, 34, or 49)","Mode","Point of Origin","Destination","Buyer/Seller Name","Buyer/Seller ID"," Buyer/Seller ID Type (24, 34, or 49)","Document Date (MM/DD/YY)","Document Number","Net Gallons","Gross Gallons","Billed Gallons"," Tax Rate (.nnn)","Import/Purchase Date (MM/DD/YY)"]
["1A","160","JJ Trucking","456789123","24","J","T12CA3456","T33CA8765","RG Oil Co","988556555","24","2018-08-02","14560",10000,10000,10000]
["1A","284","JJ Trucking","456789123","24","J","T12CA3456","T33CA8765","RG Oil Co","988556555","24","2018-08-06","46801",10000,10000,10000]
["2X","167","JJ Trucking","456789123","24","J","T12CA3456","CA","ABC Oil","111222333","24","2018-08-04","777777",8000,8001,8000]
["2X","167","JJ Trucking","456789123","24","J","T12CA3456","CA","ABC Oil","111222333","24","2018-08-09","888888",7000,7001,7000]
["3A","167","SS Ships","987654321","24","S","AK","CA","XYZ Fuels","333222111","24","2018-08-14","5127",12000,12500,12000]
["3A","167","SS Ships","987654321","24","S","AK","CA","XYZ Fuels","333222111","24","2018-08-15","5128",12500,12750,12500]
["3X","167","JJ Trucking","456789123","24","J","NV","CA","XYZ Fuels","333222111","24","2018-08-15","9134",7780,7750,7780,".360","2018-08-15"]
["3X","167","JJ Trucking","456789123","24","J","NV","CA","XYZ Fuels","333222111","24","2018-08-25","9135",7500,7450,7500,".360","2018-08-25"]
["3X","167","EK Trucking","556789123","24","J","AZ","CA","JKL Gas","777444111","24","2017-06-17","22344",2310,2300,2310,".160","2017-06-17"]
["3X","167","EK Trucking","556789123","24","J","AZ","CA","JKL Gas","777444111","24","2017-06-28","22345",1500,1450,1500,".160","2017-06-28"]
["3Y","227","JJ Trucking","456789123","24","J","NV","CA","XYZ Fuels","333222111","24","2018-08-15","87654",500,500,500]
["3Y","227","JJ Trucking","456789123","24","J","NV","CA","XYZ Fuels","333222111","24","2018-08-24","87656",450,450,450]
["5","167","JJ Trucking","456789123","24","J","T33CA8765","CA","ABC Oil","111222333","24","2018-08-02","12305",7610,7600,7610,".360","2018-08-02"]
["5","167","JJ Trucking","456789123","24","J","T33CA8765","CA","ABC Oil","111222333","24","2018-08-09","12394",7750,7740,7750,".360","2018-08-09"]
["5","167","JJ Trucking","456789123","24","J","T33CA8765","CA","ABC Oil","111222333","24","2018-08-15","12476",7801,7800,7801,".360","2018-08-15"]
["5","167","JJ Trucking","456789123","24","J","T12CA3456","CA","ABC Oil","111222333","24","2018-08-04","777777",8000,8001,8000,".360","2018-08-04"]
["5","167","JJ Trucking","456789123","24","J","T12CA3456","CA","ABC Oil","111222333","24","2018-08-09","888888",7000,7001,7000,".360","2018-08-09"]
["5","167","JJ Trucking","456789123","24","J","T33CA8765","CA","RG Oil Co","988556555","24","2017-06-30","12288",7600,7590,7600,".160","2017-06-30"]
["5","167","JJ Trucking","456789123","24","J","T33CA8765","CA","RG Oil Co","988556555","24","2017-06-30","12289",5700,5690,5700,".160","2017-06-30"]
["5A","167","Pipeline A Co","987654321","24","PL","CA","CA","JKL Gas","777444111","24","2018-08-15","71971","28730",28730,28730,".360","2018-08-15"]
["5A","167","Pipeline A Co","987654321","24","PL","CA","CA","JKL Gas","777444111","24","2018-08-31","71973","29800",29800,29800,".360","2018-08-31"]
["5Q","167",null,null,null,"CE","CA","CA","Alpha Oil Company","257426452",null,"2018-08-15","1047",500,500,500,".360","2018-08-15"]
["5Q","167",null,null,null,"CE","CA","CA","Alpha Oil Company","257426452",null,"2018-08-31","1048",400,400,400,".360","2018-08-31"]
["5W","284","JJ Trucking","456789123","24","J","CA","CA","XYZ Fuels","333222111","24","2018-08-20","1050",280,280,280,".360","2018-08-20"]
["5W","284","JJ Trucking","456789123","24","J","CA","CA","XYZ Fuels","333222111","24","2018-08-25","1051",300,300,300,".360","2018-08-25"]
["5W","284",null,null,null,"GS",null,null,null,null,null,"2018-08-10","950",10,10,10,".360","2018-08-10"]
["5W","284",null,null,null,"GS",null,null,null,null,null,"2018-08-12","622",15,15,15,".360","2018-08-12"]
["5X","167","JJ Trucking","456789123","24","J","CA","CA","XYZ Fuels","333222111","24","2018-08-20","780",30,30,30,".360","2018-08-20"]
["5X","167","JJ Trucking","456789123","24","J","CA","CA","XYZ Fuels","333222111","24","2018-08-25","781",20,20,20,".360","2018-08-25"]
["6F","130","JJ Trucking","456789123","24","J","T94CA9876","CA","ABC Jet Co","984521111","24","2018-08-01","11215",7501,7500,7501]
["6F","130","JJ Trucking","456789123","24","J","T94CA9876","CA","ABC Jet Co","984521111","24","2018-08-04","11300",7709,7700,7709]
["6X","161","EK Trucking","556789123","24","J","T12CA3456","CA","XYZ Oil","999888777","24","2018-08-24","666",5000,5001,5000]
["6X","161","EK Trucking","556789123","24","J","T12CA3456","CA","XYZ Oil","999888777","24","2018-08-29","555",4000,4001,4000]
["7","167","JJ Trucking","456789123","24","J","T33CA8765","OR","Bob's Trucking","933332222","24","2018-08-02","12306",7595,7600,7595]
["7","167","JJ Trucking","456789123","24","J","T33CA8765","OR","Bob's Trucking","933332222","24","2018-08-09","12396",7680,7670,7680]
["7D","073","Pipeline A Co","987654321","24","PL","T94CA9876","T88NV7776","RG Oil Co","988556555","24","2018-08-01","1230167",601000,600000,601000]
["7D","073","Pipeline A Co","987654321","24","PL","T94CA9876","T88NV7776","RG Oil Co","988556555","24","2018-08-16","1230168",299000,298000,299000]
["7D","130","Pipeline A Co","987654321","24","PL","T94CA9876","T88NV7776","RG Oil Co","988556555","24","2018-08-10","1241818",61500,62000,61500]
["7D","130","Pipeline A Co","987654321","24","PL","T94CA9876","T88NV7776","RG Oil Co","988556555","24","2018-08-17","1241820",63500,63000,63500]
["7D","167","Pipeline A Co","987654321","24","PL","T94CA9876","T88NV7776","ABC Oil","111222333","24","2018-08-15","1238765",200000,205000,200000]
["7D","167","Pipeline A Co","987654321","24","PL","T94CA9876","T88NV7776","ABC Oil","111222333","24","2018-08-25","1238766",300000,305000,300000]
["7F","073","JJ Trucking","456789123","24","J","CA","OR","RG Oil Co","988556555","24","2018-08-23","140",7300,7350,7300]
["7F","073","JJ Trucking","456789123","24","J","CA","OR","RG Oil Co","988556555","24","2018-08-27","152",7500,7550,7500]
["8","167","EK Trucking","556789123","24","J","T33CA8765","CA","US Govt Navy","254888887","24","2018-08-01","12250",7950,7900,7950]
["8","167","EK Trucking","556789123","24","J","T33CA8765","CA","US Govt Navy","254888887","24","2018-08-10","12400",7751,7900,7751]
["10C","167","E & B Trucking","567891234","24","J","T33CA8765","CA","Thomas' Bus","572184812","24","2018-08-21","24838",750,750,750]
["10C","167","E & B Trucking","567891234","24","J","T33CA8765","CA","Whitehound","214543873","24","2018-08-28","2644",900,950,900]
["10I","167","EK Trucking","556789123","24","J","T33CA8765","CA","Steve Farming","987085555","24","2018-08-21","12526",7855,7835,7855]
["10I","167","EK Trucking","556789123","24","J","T33CA8765","CA","Steve Farming","987085555","24","2018-08-29","12589",7501,7500,7501]
["10Y","167","EK Trucking","556789123","24","J","T33CA8765","CA","RST Trains","888555222","24","2018-08-02","87463",7000,7050,7000]
["10Y","167","EK Trucking","556789123","24","J","T33CA8765","CA","RST Trains","888555222","24","2018-08-08","87464",8000,8040,8000]
["12A","167",null,null,null,"CE","CA","CA",null,null,null,"2018-08-31","SMCU08",60000,60000,60000,".360"]
["12A","167",null,null,null,"CE","CA","CA",null,null,null,"2018-08-31","SMPR08",45000,45000,45000,".160"]
["12B","227",null,null,null,"CE","CA","CA",null,null,null,"2018-08-31","SLE0811",50000,50000,50000]
["12B","227",null,null,null,"CE","CA","CA",null,null,null,"2018-08-31","USE0811",10000,10000,10000]
["12C","167",null,null,null,"CE",null,null,null,null,null,"2018-08-31","INV0811",308106,null,null,".360"]
["12C","167",null,null,null,"CE",null,null,null,null,null,"2018-08-31","INV0811",15600,null,null,".160"]
["13A","167","JJ Trucking","456789123","24","J","CA","OR","ABC Oil","111222333","24","2018-08-02","1",7605,7600,7605]
["13A","167","JJ Trucking","456789123","24","J","CA","OR","ABC Oil","111222333","24","2018-08-09","2",7000,7000,7000]
["13A","167","JJ Trucking","456789123","24","J","CA","OR","ABC Oil","111222333","24","2017-06-12","10",605,600,605,".160"]
["13B","167","JJ Trucking","456789123","24","J","CA","CA","Consulate Officer","933335555","24","2018-08-20","1120",7000,7000,7000]
["13B","167","JJ Trucking","456789123","24","J","CA","CA","Consulate Officer","933335555","24","2018-08-31","1126",8000,8000,8000]
["13B","167","JJ Trucking","456789123","24","J","CA","CA","Consulate Officer","933335555","24","2018-08-02","120",700,700,700,".160"]
["13C","167","JJ Trucking","456789123","24","J","CA","CA","US Govt Navy","254888887","24","2018-08-17","1330",7500,7450,7500]
["13C","167","JJ Trucking","456789123","24","J","CA","CA","US Govt Navy","254888887","24","2018-08-22","1440",7700,7650,7700]
["13C","167","JJ Trucking","456789123","24","J","CA","CA","US Govt Navy","254888887","24","2018-08-07","130",500,450,500,".160"]
["13D","167","JJ Trucking","456789123","24","J","CA","CA","Steve Farming","987085555","24","2018-08-27","0622",500,500,500]
["13D","167","JJ Trucking","456789123","24","J","CA","CA","Steve Farming","987085555","24","2018-08-30","0625",60,60,60]
["13D","167","JJ Trucking","456789123","24","J","CA","CA","Steve Farming","987085555","24","2018-08-02","62",50,50,50,".160"]
["13E","167","JJ Trucking","456789123","24","J","CA","CA","SJ City Bus Line","870111115","24","2018-08-31","0623",1500,1500,1500]
["13E","167","JJ Trucking","456789123","24","J","CA","CA","SJ City Bus Line","870111115","24","2018-08-05","0624",50,50,50]
["13E","167","JJ Trucking","456789123","24","J","CA","CA","SJ City Bus Line","870111115","24","2018-08-03","23",500,500,500,".160"]
["13G","167","JJ Trucking","456789123","24","J","CA","CA","RST Trains","888555222","24","2018-08-03","133",7600,7600,7600]
["13G","167","JJ Trucking","456789123","24","J","CA","CA","RST Trains","888555222","24","2018-08-23","149",7085,7080,7085]
["13G","167","JJ Trucking","456789123","24","J","CA","CA","RST Trains","888555222","24","2018-08-13","13",600,600,600,".160"]
["13J","167",null,null,null,"CE","CA","CA",null,null,null,"2018-08-31","SOCAL1",3300,3300,3300]
["13J","167",null,null,null,"CE","CA","CA",null,null,null,"2018-08-31","NORCAL",3800,3800,3800]
["13J","167",null,null,null,"CE","CA","CA",null,null,null,"2018-08-03","SOCAL2",300,330,300,".160"]
["13M","167","JJ Trucking","456789123","24","J","T33CA8765","CA","ABC Oil","111222333","24","2018-08-02","12305",7610,7600,7610]
["13M","167","JJ Trucking","456789123","24","J","T33CA8765","CA","ABC Oil","111222333","24","2018-08-09","12394",7750,7740,7750]
["13M","167","JJ Trucking","456789123","24","J","T33CA8765","CA","ABC Oil","111222333","24","2018-08-12","305",610,600,610,".160"]
["13N","167","JJ Trucking","456789123","24","J","T33CA8765","CA","RG Oil Co","988556555","24","2018-08-18","81811",3200,3205,3200]
["13N","167","JJ Trucking","456789123","24","J","T33CA8765","CA","RG Oil Co","988556555","24","2018-08-31","83111",4900,4905,4900]
["13N","167","JJ Trucking","456789123","24","J","T33CA8765","CA","RG Oil Co","988556555","24","2018-08-08","81",200,205,200,".160"]

{"sheet":"Cover","index":3,"n_rows":68,"n_cols":9,"rows_kept":68,"cut":false,"hidden":false,"merged":[]}
["SUPPLIER OF DIESEL FUEL TAX RETURN"]
["intentionally left blank"]
["Filing Period:","Date"]
["Period Beginning Date (Format of entry must be \"May 1, 2019\" or \"5/1/19\")","2018-08-01"]
["Period Ending Date (Format of entry  must be \"May 31, 2019\" or \"5/31/19\")","2018-08-31"]
["Account Information:","Info"]
["CDTFA Account Number (Enter 9 numeric digits of account number .  e.g. \"057250000\" )","057333333"]
["Taxpayer's ID Qualifier (Enter \"24\" if providing FEIN or \"34\" if SSN)","24"]
["Taxpayer's FEIN or SSN","765432198"]
["Name (Enter legal name on CDTFA application)","Alpha Oil Company"]
["DBA"]
["DBA (If needed)"]
["Address Line 1 (Enter street address)","PO Box 123"]
["Address Line 2 (Use if needed)"]
["City","Sacramento"]
["State (Use abbreviation \"CA,\" \"NV,\" etc.)","CA"]
["ZIP","95814"]
["ZIP +4 (Use if needed)"]
["Return Information:","Diesel\nCurrent Rate","Diesel\nAlternate\nRate #1","Diesel\nAlternate\nRate #2","Diesel\nAlternate\nRate #3","Diesel\nAlternate\nRate #4","CDTFA USE ONLY"]
["Click here to go to Diesel-Tax Computation worksheet","intentionally left blank","intentionally left blank","intentionally left blank","intentionally left blank","intentionally left blank"]
["No Activity To Report (Enter 1 if no activity. Otherwise, leave blank). ",null,"intentionally left blank","intentionally left blank","intentionally left blank","intentionally left blank"]
["Click here for complete No Activity instructions.","intentionally left blank","intentionally left blank","intentionally left blank","intentionally left blank","intentionally left blank","Line Item","UOM","Qualifier"]
["1. Gallons for which tax applies or refund due (Enter from Tax Computation Worksheet Section C, line 3)",21366,13045,null,null,null,"L00031","GA","Billed"]
["2. Tax rate (Note: Tax rate is reported with a decimal point and three digits.  e.g. \".100\" or \".130\")",".360",".160",null,null,null,null,"USD","Rate"]
["3. Amount of tax due or refund claimed (Multiply line 1 by line 2)",{"$f":"ROUND((B23*B24),0)","v":7692},{"$f":"ROUND((C23*C24),0)","v":2087},0,0,0,"L00031","USD","Tax"]
["4. Total gallons for which tax applies or refund due (Add line 1, columns B, C, D, E, and F)",{"$f":"ROUND(SUM(B23:F23),0)","v":34411},"intentionally left blank","intentionally left blank","intentionally left blank","intentionally left blank","L00001","GA","Billed"]
["5. Excess tax collected",null,"intentionally left blank","intentionally left blank","intentionally left blank","intentionally left blank","L00032","USD","Tax"]
["6. Total amount of tax due or refund claimed (Add line 3, columns B, C, D, E, and F and line 5, column B)",{"$f":"ROUND(SUM(B25:F25),0)+B27","v":9779},"intentionally left blank","intentionally left blank","intentionally left blank","intentionally left blank","L00002","USD","Tax"]
["7. Penalty",null,"intentionally left blank","intentionally left blank","intentionally left blank","intentionally left blank","L00003","USD","Pen"]
["8. Interest",null,"intentionally left blank","intentionally left blank","intentionally left blank","intentionally left blank","L00004","USD","Int"]
["9. Total amount due and payable or refund claimed (add lines 6, 7, and 8)",{"$f":"ROUND(SUM(B28:B30),0)","v":9779},"intentionally left blank","intentionally left blank","intentionally left blank","intentionally left blank","L00005","USD","Total"]
["ePay Information:","Info"]
["Click here for complete Motor Fuels ePay instructions.","intentionally left blank"]
["ePay Payment Warehouse Date  (Use date format \"May 1, 2019\" or \"5/1/2019\")","2018-09-30"]
["ePay Payment Amount (Use whole numbers only: \"90000,\" not \"90000.00\")",9779]
["ePay Routing Number","1110001111"]
["ePay Account Number Qualifier (“DBTCHK” – Business checking; “DBTSAV” – Business savings; “DBTCCK” – Personal checking; “DBTCSV” – Personal savings)","DBTCHK"]
["ePay Account Number","1234"]
["ePay Contact Name","Don D. Doe"]
["ePay Contact Area Code (Use numbers only: \"916,\" not \"(916)\")","916"]
["ePay Contact  Phone Number (Use numbers only: \"2223333,\" not \"222-3333\")","2224444"]
["ePay Contact Phone Extension (Use numbers only: \"222,\" not \"x222\")"]
["eFiling Information:","Info"]
["Purpose Code  ( “00” – Original; \"Blank\" – Resubmission or Supplemental)","00"]
["Purpose Transaction Type ( \"Blank\" – Original; “6R” – Resubmission; “6S” – Supplemental)"]
["Sender's FEIN (May be same as taxpayer)","765432198"]
["Production Filing (P to identify production filing.)","P"]
["Contact Information:","Info"]
["General Contact Name","Dave Johnson"]
["General Contact Area Code (Use numbers only: \"916,\" not \"(916)\")",916]
["General Contact Phone Number (Use numbers only: \"2223333,\" not \"222-3333\")",2223333]
["General Contact Extension (Use numbers only)","1234"]
["General Contact Fax Area Code (Use numbers only: \"916,\" not \"(916)\")",916]
["General Contact Fax Phone Number (Use numbers only: \"2223333,\" not \"222-3333\")",2223334]
["General Contact Fax Extension (Use numbers only)"]
["General Contact Email Address","djohnson@alphaoil.com"]
["eFiling Contact Name","Don D. Doe"]
["eFiling Contact Area Code (Use numbers only: \"916,\" not \"(916)\")",916]
["eFiling Contact Phone Number (Use numbers only: \"2223333,\" not \"222-3333\")",2224444]
["eFiling Contact Extension (Use numbers only)","4321"]
["eFiling Contact Fax Area Code (Use numbers only: \"916,\" not \"(916)\")",916]
["eFiling Contact Fax Phone Number (Use numbers only: \"2223333,\" not \"222-3333\")",2224445]
["eFiling Contact Fax Extension (Use numbers only)"]
["eFiling Contact Email Address","dddoe@alphaoil.com"]
["CDTFA USE ONLY:"]
["Report Type","SDR"]
["CDTFA Software Version","4.0"]
["End of Worksheet"]

{"sheet":"Diesel - Tax Computation","index":4,"n_rows":58,"n_cols":7,"rows_kept":58,"cut":false,"hidden":false,"merged":[[26,0,26,6],[31,0,31,6],[32,0,32,6],[0,0,0,6],[1,0,1,6],[2,0,2,6],[3,0,3,6],[13,0,13,6],[38,0,38,6],[39,0,39,6],[40,0,40,6],[42,0,42,6],[33,0,33,6],[34,0,34,6],[35,0,35,6],[36,0,36,6],[37,0,37,6],[53,0,53,6],[54,0,54,6],[55,0,55,6],[56,0,56,6],[41,0,41,6],[51,0,51,6],[48,0,48,6],[49,0,49,6],[50,0,50,6],[52,0,52,6],[43,0,43,6],[44,0,44,6],[45,0,45,6],[46,0,46,6],[47,0,47,6]]}
["DIESEL TAX COMPUTATION WORKSHEET"]
["Click here to return to Cover worksheet"]
["Click here to return to the Instructions worksheet"]
["This worksheet should be used to help you complete your return and calculate the tax due."]
["SECTION A. TAXABLE TRANSACTIONS","FROM SCHEDULE","A\n\nALL OTHER DIESEL AT CURRENT RATE","B\nALL OTHER   DIESEL AT ALTERNATE RATE #1","C\nALL OTHER  DIESEL AT ALTERNATE RATE #2","D\nALL OTHER  DIESEL AT ALTERNATE RATE #3","E\nALL OTHER  DIESEL AT ALTERNATE RATE #4"]
["1.  Imports Below the Rack Subject to Tax (enter from\n     Schedule 3X)","3X",15280,3810]
["2.  Fuel Removed Subject to Tax (enter from Schedule\n     5)",5,38161,13300]
["3.  Fuel Sold Above the Rack to Unlicensed Parties\n     (enter from Schedule 5A)","5A",58530]
["4.  Gallons Used in a Taxable Manner (enter from\n     Schedule 5Q)","5Q",900]
["5.  Untaxed Products Blended with or Added to Fuel,\n     Resulting in a Product Which Is Used as or Is \n     Usable as, a Taxable Fuel (enter from Schedule 5W)","5W",605]
["6.  Gallons Delivered Partially Taxed (enter from\n     Schedule 5X)","5X",50]
["7.  Miscellaneous Fuel Transactions Subject to Tax \n     (enter from Schedule S02A)","S02A"]
["8.  Total of Transactions Subject to Tax (add lines 1 \n     through 7 for each column)",null,{"$f":"SUM(C6:C12)","v":113526},{"$f":"SUM(D6:D12)","v":17110},{"$f":"SUM(E6:E12)","v":0},{"$f":"SUM(F6:F12)","v":0},{"$f":"SUM(G6:G12)","v":0}]
["intentionally left blank"]
["SECTION B. TAX-PAID CREDITS","FROM SCHEDULE","A\n\nALL OTHER DIESEL AT CURRENT RATE","B\nALL OTHER   DIESEL AT ALTERNATE RATE #1","C\nALL OTHER  DIESEL AT ALTERNATE RATE #2","D\nALL OTHER  DIESEL AT ALTERNATE RATE #3","E\nALL OTHER  DIESEL AT ALTERNATE RATE #4"]
["1.  Tax-Paid Fuel Exported (enter from Schedule 13A)","13A",14605,605]
["2.  Tax-Paid Fuel Sold to a Consulate Officer or\n     Employee by Credit Card (enter from Schedule 13B)","13B",15000,700]
["3.  Tax-Paid Fuel Sold to the United States Government\n     (enter from Schedule 13C)","13C",15200,500]
["4.  Tax-paid Fuel Sold for Use on Farms (enter from\n     Schedule 13D)","13D",560,50]
["5.  Tax-paid Fuel Sold to Exempt Bus Operators (enter\n     from Schedule 13E)","13E",1550,500]
["6.  Tax-paid Fuel Sold to Train Operators (enter from\n     Schedule 13G)","13G",14685,600]
["7.  Tax-Paid Fuel Used in an Exempt Manner Not \n     Reportable on Another Schedule (enter from\n     Schedule 13J)","13J",7100,300]
["8.  Tax-Paid Fuel Removed From a Terminal (enter \n     from Schedule 13M)","13M",15360,610]
["9.  Tax-Paid Fuel Used to Manufacture Other Products\n     (enter from Schedule 13N)","13N",8100,200]
["10.  Other Tax-Paid Credits (enter from Schedules \n       S03A and S04)","S03A & S04"]
["11.  Total of Tax-Paid Credits (add lines 1 through 10 for\n       each column)","intentionally left blank",{"$f":"SUM(C16:C25)","v":92160},{"$f":"SUM(D16:D25)","v":4065},{"$f":"SUM(E16:E25)","v":0},{"$f":"SUM(F16:F25)","v":0},{"$f":"SUM(G16:G25)","v":0}]
["intentionally left blank"]
["SECTION C. TAXABLE GALLONS COMPUTATION","FROM SCHEDULE","ALL OTHER DIESEL AT CURRENT RATE","ALL OTHER   DIESEL AT ALTERNATE RATE #1","ALL OTHER  DIESEL AT ALTERNATE RATE #2","ALL OTHER  DIESEL AT ALTERNATE RATE #3","ALL OTHER  DIESEL AT ALTERNATE RATE #4"]
["1.  Total gallons from transactions subject to tax (from\n     section A, line 8 for each column)","intentionallly left blank",{"$f":"+C13","v":113526},{"$f":"+D13","v":17110},{"$f":"+E13","v":0},{"$f":"+F13","v":0},{"$f":"+G13","v":0}]
["2.  Total gallons of tax-paid credits (from section B, line\n     11 for each column)","intentionallly left blank",{"$f":"+C26","v":92160},{"$f":"+D26","v":4065},{"$f":"+E26","v":0},{"$f":"+F26","v":0},{"$f":"+G26","v":0}]
["3.  TAXABLE GALLONS (subtract line 2 from line 1.\n     This may be a negative amount.  Enter this amount on\n     line 1 on the front of the return.)","intentionallly left blank",{"$f":"+C29-C30","v":21366},{"$f":"+D29-D30","v":13045},{"$f":"+E29-E30","v":0},{"$f":"+F29-F30","v":0},{"$f":"+G29-G30","v":0}]
["Preparation of the Tax Computation Worksheet"]
["A.          Taxable Transactions"]
["Line 1.  Enter, by tax rate, the total gallons of ex-tax diesel fuel imported into California below the terminal rack\n              by adding the billed gallons (column P of the Schedule worksheet) of all Schedule 3X transactions\n              for taxable products.  Refer to forms CDTFA-810-FTA or CDTFA-810-FTB for a list identifying\n              products and their taxability."]
["Line 2.  Enter, by tax rate, the total gallons of diesel fuel removed from California terminal racks that were \n              subject to tax during the reporting period by adding the billed gallons (column P of the Schedule \n              worksheet) of all Schedule 5 transactions."]
["Line 3.  Enter, by tax rate, the total gallons of diesel fuel sold above the rack to unlicensed parties that were \n              subject to tax during the reporting period by adding the billed gallons (column P of the Schedule \n              worksheet) of all Schedule 5A transactions."]
["Line 4.  Enter, by tax rate, the total gallons of diesel fuel used by you during the reporting period by adding the \n              totals (column P of the Schedule worksheet) for each disbursement schedule coded 5Q."]
["Line 5.  Enter, by tax rate, the total gallons of untaxed products blended with or added to diesel fuel resulting \n              in a product which is used as or usable as diesel fuel during the reporting period by adding the billed \n              gallons (column P of the Schedule worksheet) of all Schedule 5W transactions."]
["Line 6.  Enter, by tax rate, the difference between gross gallons sold to customers and net gallons purchased \n              from suppliers by adding the totals (column P of the Schedule worksheet) for each disbursement \n              schedule coded 5X."]
["Line 7.  Enter, by tax rate, the total gallons of miscellaneous diesel fuel that are subject to tax during the \n              reporting period by adding the billed gallons (column P of the Schedule worksheet) of all Schedule \n              S02A transactions."]
["Line 8.  Enter, by tax rate, the subtotal of gallons of diesel fuel transactions subject to tax during the reporting \n              period by adding lines 1 through 7 for Columns A through E."]
["B.          Tax-Paid Credits"]
["Line 1.  Enter, by tax rate, the total gallons of tax-paid diesel fuel exported below the California terminal racks\n              by adding the billed gallons (column P of the Schedule worksheet) of all Schedule 13A transactions."]
["Line 2.  Enter, by tax rate, the total gallons of tax-paid diesel fuel sold to a consulate officer or employee by \n              credit card by adding the billed gallons (column P of the Schedule worksheet) of all Schedule 13B \n              transactions."]
["Line 3.  Enter, by tax rate, the total gallons of tax-paid diesel fuel sold to the United States Government by \n              adding the billed gallons (column P of the Schedule worksheet) of all Schedule 13C transactions."]
["Line 4.  Enter, by tax rate, the total gallons of tax-paid diesel fuel sold to a person who uses the fuel for \n              farming purposes by adding the billed gallons (column P of the Schedule worksheet) of all Schedule \n              13D transactions."]
["Line 5.  Enter, by tax rate, the total gallons of tax-paid diesel fuel sold to exempt bus operators by adding the \n              billed gallons (column P of the Schedule worksheet) of all Schedule 13E transactions."]
["Line 6.  Enter, by tax rate, the total gallons of tax-paid diesel fuel sold to train operators by adding the billed \n              gallons (column P of the Schedule worksheet) of all Schedule 13G transactions."]
["Line 7.  Enter, by tax rate, the total gallons of tax-paid diesel fuel by tax rate used in an exempt manner not \n              reportable on any other credit schedule by adding the totals (column P of the Schedule worksheet) \n              for each disbursement schedule coded 13J."]
["Line 8.  Enter, by tax rate, the total gallons of tax-paid diesel fuel by tax rate removed from a terminal as a \n              second taxable event by adding the totals (column P of the Schedule worksheet) for each disbursement \n              schedule coded 13M."]
["Line 9.  Enter, by tax rate, the total gallons of tax-paid diesel fuel by tax rate used to manufacture other \n              products by adding the totals (column P of the Schedule worksheet) for each disbursement schedule \n              coded 13N."]
["Line 10.   Enter, by tax rate, the total gallons of other tax-paid diesel fuel allowed to be taken as a tax-paid \n                 credit by adding the billed gallons (column P of the Schedule worksheet) of all Schedule S03A and \n                S04 transactions."]
["Line 11.   Enter, by tax rate, the subtotal of gallons of diesel fuel transactions subject to credit during the \n                 reporting period by adding lines 1 through 10 for Columns A through E."]
["C.          Taxable Gallons Computation"]
["Line 1.  Enter the total gallons from transactions subject to tax from section A, line 8 for each column."]
["Line 2.  Enter the total gallons of tax-paid credits from section B, line 11 for each column."]
["Line 3.  Calculate taxable gallons at each tax rate by subtracting line 2 from line 1 for each column.  Enter this \n              amount in the corresponding field on line 1 on the front of the return (Cover worksheet)."]
["End of Worksheet"]

{"sheet":"Tables (CDTFA Staff Only)","index":5,"n_rows":257,"n_cols":6,"rows_kept":257,"cut":false,"hidden":true,"merged":[[0,2,40,2]]}
["CDTFA USE ONLY DO NOT MODIFY",null,"CDTFA USE ONLY DO NOT MODIFY","Schedule Codes","Mode Codes","Epay Account TypePermutations"]
[null,null,null,"1A","J","DBTCHK"]
[null,null,null,"5","IJ","DBTSAV"]
[null,null,null,"7","EJ","DBTCCK"]
[null,null,null,"8","B","DBTCSV"]
[null,null,null,"10C","IB","dbtchk"]
[null,null,null,"10I","EB","dbtsav"]
[null,null,null,"10Y","R","dbtcck"]
[null,null,null,"12A","IR","dbtcsv"]
[null,null,null,"12B","ER","dbtccK"]
[null,null,null,"12C","PL","dbtcCk"]
[null,null,null,"13A","IP","dbtcCK"]
[null,null,null,"13B","EP","dbtCck"]
[null,null,null,"13C","S","dbtCcK"]
[null,null,null,"13D","IS","dbtCCk"]
[null,null,null,"13E","ES","dbtCCK"]
["Not Used",null,null,"13G","RT","dbTcck"]
["Not Used",null,null,"13J","RS","dbTccK"]
["Random Generated Interchange Control Number","533424486",null,"13M","RR","dbTcCk"]
["Period Beginning Date From Cover","7/1/2019",null,"13N","RF","dbTcCK"]
["Period End Date From Cover","7/30/2019",null,"2X","AH","dbTCck"]
["Default Date","01/01/2002",null,"3A","AJ","dbTCcK"]
["First Date Return in Valid","01/01/2019",null,"3X","BA","dbTCCk"]
["CDTFA Internal Version Number","4.0.1",null,"3Y","CE","dbTCCK"]
[null,null,null,"5A","GS","dBtcck"]
[null,null,null,"5Q","ST","dBtccK"]
[null,null,null,"5W","j","dBtcCk"]
[null,null,null,"5X","ij","dBtcCK"]
[null,null,null,"6F","iJ","dBtCck"]
[null,null,null,"6X","Ij","dBtCcK"]
[null,null,null,"7D","ej","dBtCCk"]
[null,null,null,"7F","eJ","dBtCCK"]
[null,null,null,"S02A","Ej","dBTcck"]
[null,null,null,"S03A","b","dBTccK"]
[null,null,null,"S04","ib","dBTcCk"]
[null,null,null,"S05I","iB","dBTcCK"]
[null,null,null,"1a","Ib","dBTCck"]
["Report Type","SDR",null,"10c","eb","dBTCcK"]
["File Type","FLT",null,"10i","eB","dBTCCk"]
["Version","4.0",null,"10y","Eb","dBTCCK"]
["BOE/CDTFA DUNS #",617856943,null,"12a","r","Dbtcck"]
[null,null,null,"12b","ir","DbtccK"]
[null,null,null,"12c","iR","DbtcCk"]
[null,null,null,"13a","Ir","DbtcCK"]
[null,null,null,"13b","er","DbtCck"]
[null,null,null,"13c","eR","DbtCcK"]
[null,null,null,"13d","Er","DbtCCk"]
[null,null,null,"13e","pl","DbtCCK"]
[null,null,null,"13g","pL","DbTcck"]
[null,null,null,"13j","Pl","DbTccK"]
[null,null,null,"13m","ip","DbTcCk"]
[null,null,null,"13n","iP","DbTcCK"]
[null,null,null,"2x","Ip","DbTCck"]
[null,null,null,"3a","ep","DbTCcK"]
[null,null,null,"3x","eP","DbTCCk"]
[null,null,null,"3y","Ep","DbTCCK"]
[null,null,null,"5a","s","DBtcck"]
[null,null,null,"5q","is","DBtccK"]
[null,null,null,"5w","iS","DBtcCk"]
[null,null,null,"5x","Is","DBtcCK"]
[null,null,null,"6f","es","DBtCck"]
[null,null,null,"6x","eS","DBtCcK"]
[null,null,null,"7d","Es","DBtCCk"]
[null,null,null,"7f","rt","DBtCCK"]
[null,null,null,"s02a","rT","DBTcck"]
[null,null,null,"S02a","Rt","DBTccK"]
[null,null,null,"s02A","rs","DBTcCk"]
[null,null,null,"s03a","rS","DBTcCK"]
[null,null,null,"S03a","Rs","DBTCck"]
[null,null,null,"s03A","rr","DBTCcK"]
[null,null,null,"s04","rR","DBTCCk"]
[null,null,null,"s05i","Rr","dbtcsV"]
[null,null,null,"S05i","rf","dbtcSv"]
[null,null,null,"s05I","rF","dbtcSV"]
[null,null,null,null,"Rf","dbtCsv"]
[null,null,null,null,"ah","dbtCsV"]
[null,null,null,null,"aH","dbtCSv"]
[null,null,null,null,"Ah","dbtCSV"]
[null,null,null,null,"aj","dbTcsv"]
[null,null,null,null,"aJ","dbTcsV"]
[null,null,null,null,"Aj","dbTcSv"]
[null,null,null,null,"ba","dbTcSV"]
[null,null,null,null,"bA","dbTCsv"]
[null,null,null,null,"Ba","dbTCsV"]
[null,null,null,null,"ce","dbTCSv"]
[null,null,null,null,"cE","dbTCSV"]
[null,null,null,null,"Ce","dBtcsv"]
[null,null,null,null,"gs","dBtcsV"]
[null,null,null,null,"gS","dBtcSv"]
[null,null,null,null,"Gs","dBtcSV"]
[null,null,null,null,"st","dBtCsv"]
[null,null,null,null,"sT","dBtCsV"]
[null,null,null,null,"St","dBtCSv"]
[null,null,null,null,null,"dBtCSV"]
[null,null,null,null,null,"dBTcsv"]
[null,null,null,null,null,"dBTcsV"]
[null,null,null,null,null,"dBTcSv"]
[null,null,null,null,null,"dBTcSV"]
[null,null,null,null,null,"dBTCsv"]
[null,null,null,null,null,"dBTCsV"]
[null,null,null,null,null,"dBTCSv"]
[null,null,null,null,null,"dBTCSV"]
[null,null,null,null,null,"Dbtcsv"]
[null,null,null,null,null,"DbtcsV"]
[null,null,null,null,null,"DbtcSv"]
[null,null,null,null,null,"DbtcSV"]
[null,null,null,null,null,"DbtCsv"]
[null,null,null,null,null,"DbtCsV"]
[null,null,null,null,null,"DbtCSv"]
[null,null,null,null,null,"DbtCSV"]
[null,null,null,null,null,"DbTcsv"]
[null,null,null,null,null,"DbTcsV"]
[null,null,null,null,null,"DbTcSv"]
[null,null,null,null,null,"DbTcSV"]
[null,null,null,null,null,"DbTCsv"]
[null,null,null,null,null,"DbTCsV"]
[null,null,null,null,null,"DbTCSv"]
[null,null,null,null,null,"DbTCSV"]
[null,null,null,null,null,"DBtcsv"]
[null,null,null,null,null,"DBtcsV"]
[null,null,null,null,null,"DBtcSv"]
[null,null,null,null,null,"DBtcSV"]
[null,null,null,null,null,"DBtCsv"]
[null,null,null,null,null,"DBtCsV"]
[null,null,null,null,null,"DBtCSv"]
[null,null,null,null,null,"DBtCSV"]
[null,null,null,null,null,"DBTcsv"]
[null,null,null,null,null,"DBTcsV"]
[null,null,null,null,null,"DBTcSv"]
[null,null,null,null,null,"DBTcSV"]
[null,null,null,null,null,"DBTCsv"]
[null,null,null,null,null,"DBTCsV"]
[null,null,null,null,null,"DBTCSv"]
[null,null,null,null,null,"dbtchK"]
[null,null,null,null,null,"dbtcHk"]
[null,null,null,null,null,"dbtcHK"]
[null,null,null,null,null,"dbtChk"]
[null,null,null,null,null,"dbtChK"]
[null,null,null,null,null,"dbtCHk"]
[null,null,null,null,null,"dbtCHK"]
[null,null,null,null,null,"dbTchk"]
[null,null,null,null,null,"dbTchK"]
[null,null,null,null,null,"dbTcHk"]
[null,null,null,null,null,"dbTcHK"]
[null,null,null,null,null,"dbTChk"]
[null,null,null,null,null,"dbTChK"]
[null,null,null,null,null,"dbTCHk"]
[null,null,null,null,null,"dbTCHK"]
[null,null,null,null,null,"dBtchk"]
[null,null,null,null,null,"dBtchK"]
[null,null,null,null,null,"dBtcHk"]
[null,null,null,null,null,"dBtcHK"]
[null,null,null,null,null,"dBtChk"]
[null,null,null,null,null,"dBtChK"]
[null,null,null,null,null,"dBtCHk"]
[null,null,null,null,null,"dBtCHK"]
[null,null,null,null,null,"dBTchk"]
[null,null,null,null,null,"dBTchK"]
[null,null,null,null,null,"dBTcHk"]
[null,null,null,null,null,"dBTcHK"]
[null,null,null,null,null,"dBTChk"]
[null,null,null,null,null,"dBTChK"]
[null,null,null,null,null,"dBTCHk"]
[null,null,null,null,null,"dBTCHK"]
[null,null,null,null,null,"Dbtchk"]
[null,null,null,null,null,"DbtchK"]
[null,null,null,null,null,"DbtcHk"]
[null,null,null,null,null,"DbtcHK"]
[null,null,null,null,null,"DbtChk"]
[null,null,null,null,null,"DbtChK"]
[null,null,null,null,null,"DbtCHk"]
[null,null,null,null,null,"DbtCHK"]
[null,null,null,null,null,"DbTchk"]
[null,null,null,null,null,"DbTchK"]
[null,null,null,null,null,"DbTcHk"]
[null,null,null,null,null,"DbTcHK"]
[null,null,null,null,null,"DbTChk"]
[null,null,null,null,null,"DbTChK"]
[null,null,null,null,null,"DbTCHk"]
[null,null,null,null,null,"DbTCHK"]
[null,null,null,null,null,"DBtchk"]
[null,null,null,null,null,"DBtchK"]
[null,null,null,null,null,"DBtcHk"]
[null,null,null,null,null,"DBtcHK"]
[null,null,null,null,null,"DBtChk"]
[null,null,null,null,null,"DBtChK"]
[null,null,null,null,null,"DBtCHk"]
[null,null,null,null,null,"DBtCHK"]
[null,null,null,null,null,"DBTchk"]
[null,null,null,null,null,"DBTchK"]
[null,null,null,null,null,"DBTcHk"]
[null,null,null,null,null,"DBTcHK"]
[null,null,null,null,null,"DBTChk"]
[null,null,null,null,null,"DBTChK"]
[null,null,null,null,null,"DBTCHk"]
[null,null,null,null,null,"dbtsaV"]
[null,null,null,null,null,"dbtsAv"]
[null,null,null,null,null,"dbtsAV"]
[null,null,null,null,null,"dbtSav"]
[null,null,null,null,null,"dbtSaV"]
[null,null,null,null,null,"dbtSAv"]
[null,null,null,null,null,"dbtSAV"]
[null,null,null,null,null,"dbTsav"]
[null,null,null,null,null,"dbTsaV"]
[null,null,null,null,null,"dbTsAv"]
[null,null,null,null,null,"dbTsAV"]
[null,null,null,null,null,"dbTSav"]
[null,null,null,null,null,"dbTSaV"]
[null,null,null,null,null,"dbTSAv"]
[null,null,null,null,null,"dbTSAV"]
[null,null,null,null,null,"dBtsav"]
[null,null,null,null,null,"dBtsaV"]
[null,null,null,null,null,"dBtsAv"]
[null,null,null,null,null,"dBtsAV"]
[null,null,null,null,null,"dBtSav"]
[null,null,null,null,null,"dBtSaV"]
[null,null,null,null,null,"dBtSAv"]
[null,null,null,null,null,"dBtSAV"]
[null,null,null,null,null,"dBTsav"]
[null,null,null,null,null,"dBTsaV"]
[null,null,null,null,null,"dBTsAv"]
[null,null,null,null,null,"dBTsAV"]
[null,null,null,null,null,"dBTSav"]
[null,null,null,null,null,"dBTSaV"]
[null,null,null,null,null,"dBTSAv"]
[null,null,null,null,null,"dBTSAV"]
[null,null,null,null,null,"Dbtsav"]
[null,null,null,null,null,"DbtsaV"]
[null,null,null,null,null,"DbtsAv"]
[null,null,null,null,null,"DbtsAV"]
[null,null,null,null,null,"DbtSav"]
[null,null,null,null,null,"DbtSaV"]
[null,null,null,null,null,"DbtSAv"]
[null,null,null,null,null,"DbtSAV"]
[null,null,null,null,null,"DbTsav"]
[null,null,null,null,null,"DbTsaV"]
[null,null,null,null,null,"DbTsAv"]
[null,null,null,null,null,"DbTsAV"]
[null,null,null,null,null,"DbTSav"]
[null,null,null,null,null,"DbTSaV"]
[null,null,null,null,null,"DbTSAv"]
[null,null,null,null,null,"DbTSAV"]
[null,null,null,null,null,"DBtsav"]
[null,null,null,null,null,"DBtsaV"]
[null,null,null,null,null,"DBtsAv"]
[null,null,null,null,null,"DBtsAV"]
[null,null,null,null,null,"DBtSav"]
[null,null,null,null,null,"DBtSaV"]
[null,null,null,null,null,"DBtSAv"]
[null,null,null,null,null,"DBtSAV"]
[null,null,null,null,null,"DBTsav"]
[null,null,null,null,null,"DBTsaV"]
[null,null,null,null,null,"DBTsAv"]
[null,null,null,null,null,"DBTsAV"]
[null,null,null,null,null,"DBTSav"]
[null,null,null,null,null,"DBTSaV"]
[null,null,null,null,null,"DBTSAv"]